Cogmind - Beta 15 @@@ ROGUE MODE // 2025.07.09 @ 21:03:21 Player: Lord Dregs Result: Destroyed by G-47 Trooper with Particle Gun Performance ------------- Evolutions (2) 1000 Regions Visited (4) 800 Robots Destroyed (57) 285 Value Destroyed (1803) 1803 Prototype IDs (0) 0 Alien Tech Used (0) 0 Bonus (0) 0 TOTAL SCORE: 3888 Bonus ------- None Cogmind --------- Core Integrity 0/550 Matter 245/300 Energy 265/265 System Corruption 0% Temperature Cool (9) Movement Walking (190) Ox1 Location -8/Materials Parts ------- > --- POWER (1) -------- Reinforced Ion Engine > --- PROPULSION (4) --- Improved Carbon-fiber Leg > --- UTILITY (4) ------ Medium Storage Unit Signal Interpreter Targeting Computer Targeting Computer > --- WEAPON (2) ------- Minigun Minigun > --- INVENTORY (10) --- Light Ion Engine Improved Ion Engine Improved Deuterium Engine Targeting Computer Targeting Computer Field Laser Field Laser Gauss Rifle Peak State ------------ > --- POWER ------------ Reinforced Ion Engine > --- PROPULSION ------- Carbon-fiber Leg Carbon-fiber Leg Carbon-fiber Leg Carbon-fiber Leg > --- UTILITY ---------- Medium Storage Unit Large Matter Pod Signal Interpreter Targeting Computer > --- WEAPON ----------- Minigun Gauss Rifle > --- INVENTORY -------- Light Ion Engine Improved Ion Engine Targeting Computer Targeting Computer Field Laser Field Laser Minigun Minigun Gauss Rifle [Rating: 27] Favorites ----------- Power Ion Engine Engine Ion Engine Propulsion Aluminum Leg Leg Aluminum Leg Utility Medium Storage Unit Storage Medium Storage Unit Processor Signal Interpreter Protection Light Armor Plating Weapon Light Assault Rifle Energy Gun Small Laser Ballistic Gun Light Assault Rifle Ballistic Cannon Light Cannon Build | -11 -10 -10 -9 -8 ------- Run | Yrd Mat Min Mat Mat Slots Evolved 4 | . . . 2 2 Power . | . . . . . Propulsion 2 | . . . 1 1 Utility 2 | . . . 1 1 Weapon . | . . . . . Parts Attached 52 | 5 8 3 9 27 Power 6 | 1 1 . 1 3 Engine 6 | 1 1 . 1 3 Core . | . . . . . Reactor . | . . . . . Propulsion 24 | 2 2 3 5 12 Treads . | . . . . . Leg 24 | 2 2 3 5 12 Wheel . | . . . . . Hover . | . . . . . Flight . | . . . . . Utility 6 | . 3 . 1 2 Device . | . . . . . Storage 2 | . 1 . 1 . Processor 3 | . 1 . . 2 Hackware . | . . . . . Protection 1 | . 1 . . . Artifact . | . . . . . Weapon 16 | 2 2 . 2 10 Energy Gun 4 | 1 . . . 3 Energy Cannon . | . . . . . Ballistic Gun 11 | 1 1 . 2 7 Ballistic Cannon 1 | . 1 . . . Launcher . | . . . . . Special Weapon . | . . . . . Impact Weapon . | . . . . . Slashing Weapon . | . . . . . Piercing Weapon . | . . . . . Special Melee Weapon . | . . . . . Unidentified Prototypes . | . . . . . Parts Lost 23 | . 1 . 2 20 Power 3 | . 1 . . 2 Propulsion 13 | . . . 1 12 Utility 1 | . . . . 1 Weapon 6 | . . . 1 5 Highest Loss Streak 6 | . 1 . 2 6 To Critical Strikes 1 | . . . . 1 Average Backups 8 | . 5 9 9 8 Power . | . . . 1 1 Propulsion 2 | . 2 2 2 1 Utility 1 | . 2 2 1 1 Weapon 3 | . . 3 4 4 Tool/Special . | . . . . . Unused Backups 15 | . . 1 6 8 Power 3 | . . . . 3 Propulsion 1 | . . . . 1 Utility 4 | . . 1 1 2 Weapon 7 | . . . 5 2 Tool/Special . | . . . . . Average Slot Usage (%) 95 | . 93 100 98 93 Engine 11 | . 13 14 11 8 Leg 30 | . 27 28 32 31 Storage 16 | . 11 14 21 17 Processor 10 | . . 14 11 18 Protection 3 | . 11 . . . Energy Gun 1 | . 5 . . . Ballistic Gun 17 | . 19 14 19 16 Ballistic Cannon 3 | . 2 14 2 . Peak Build Rating 27 | 5 8 8 11 27 Average Rating 11 | 3 6 7 10 17 On Entrance 6 | . 5 8 8 11 Naked Turns . | . . . . . Heaviest Build 30 | 5 22 19 22 30 Greatest Support 63 | 20 20 20 30 63 Greatest Overweight (x) 5 | . 5 . 1 1 Average Overweight (x) . | . . . . . Largest Inventory Capacity 10 | 5 10 10 10 10 Average Capacity 9 | 5 9 10 10 10 Most Carried 10 | 2 10 10 10 10 Average Carried 8 | . 5 9 9 8 Final Capacity 10 | 5 10 10 10 10 Final Carried 10 | 2 10 10 10 8 Class Distribution -------------------- 51% | Mutant 48% | Scavenger-Mutant Dominant Class ---------------- Mutant | -10/Materials Mutant | -10/Mines Scavenger-Mutant | -9/Materials Scavenger-Mutant | -8/Materials Resources | -11 -10 -10 -9 -8 ----------- Run | Yrd Mat Min Mat Mat Matter Collected 1894 | 209 300 197 501 687 Remotely . | . . . . . Salvage Created 2199 | 38 401 150 491 1119 Parts 146 | 2 32 8 38 66 Haulers Intercepted 1 | . . . 1 . Recyclers Shooed 4 | . 1 . 1 2 Parts Field Recycled . | . . . . . Retrieved Matter . | . . . . . Parts Self-Destructed . | . . . . . Prevented . | . . . . . Kills | -11 -10 -10 -9 -8 ------- Run | Yrd Mat Min Mat Mat Combat Hostiles Destroyed 50 | 1 14 6 13 16 Guns 41 | 1 12 2 10 16 Cannons 9 | . 2 4 3 . Classes Destroyed 13 | 1 2 1 2 7 Worker 2 | . . . . 2 Builder 1 | . . . . 1 Hauler 1 | . . . 1 . Recycler 3 | . . . . 3 Watcher 2 | . 1 . 1 . Swarmer 11 | . 6 . 5 . Grunt 19 | 1 8 4 3 3 Brawler 1 | . . . . 1 Duelist 1 | . . . . 1 Sentry 10 | . . . 5 5 Specialist 2 | . . . . 2 Hunter 4 | . . . . 4 Assembled 2 | . . 2 . . Best Kill Streak 4 | 1 3 2 3 4 Combat Bots Only 3 | 1 3 2 3 2 Max Kills in Single Turn 1 | 1 1 1 1 1 Gunslinging . | . . . . . Exploded . | . . . . . Melee . | . . . . . Uniques/NPCs Destroyed . | . . . . . Combat | -11 -10 -10 -9 -8 -------- Run | Yrd Mat Min Mat Mat Hostile Shots Fired 386 | 6 64 32 80 204 Missed 104 | 3 16 10 30 45 Hits 282 | 3 48 22 50 159 Melee 11 | . . . . 11 Projectile 271 | 3 48 22 50 148 Critical Strikes 13 | . . 1 2 10 Damage Taken 4201 | 35 448 274 654 2790 Core 851 | . 115 31 146 559 Absorbed by Shields . | . . . . . Regen/Repaired (Parts) 22 | . . . 22 . Core Remaining (%) 68 | 100 . 41 63 . Volleys Fired 232 | 4 41 23 54 110 Largest 2 | 2 2 2 2 2 Hottest 126 | 60 60 50 50 126 Shots Fired 420 | 8 82 46 108 176 Gun 373 | 8 77 23 89 176 Cannon 47 | . 5 23 19 . Launcher . | . . . . . Special . | . . . . . Kinetic 390 | 4 64 46 108 168 Thermal 28 | 4 18 . . 6 Explosive . | . . . . . Electromagnetic 2 | . . . . 2 Robot Hit Streak 14 | 4 11 8 13 14 Robot Miss Streak 6 | 3 2 6 3 5 Penetration Max 1 | . . . . 1 Secondary Targets 3 | . 2 . 1 . Max Gunslinging Chain 1 | . 1 . 1 . Shots Hit Robots 289 | 4 58 21 66 140 Core Hits 125 | 2 32 13 30 48 Critical Kills 2 | . . . 1 1 Critical Parts Destroyed 1 | . . . 1 . Critical Strikes 6 | . . 1 4 1 Destroy 3 | . . . 2 1 Blast 3 | . . 1 2 . Melee Attacks . | . . . . . Impact . | . . . . . Slashing . | . . . . . Piercing . | . . . . . Sneak Attacks . | . . . . . Combat Hostiles . | . . . . . Follow-up Attacks . | . . . . . Damage Inflicted 3844 | 42 543 276 824 2159 Guns 3314 | 42 466 88 559 2159 Cannons 498 | . 72 167 259 . Explosions . | . . . . . Melee . | . . . . . Ramming 32 | . 5 21 6 . Kinetic 3510 | 21 380 255 818 2036 Thermal 269 | 21 158 . . 90 Explosive . | . . . . . Electromagnetic 33 | . . . . 33 Impact . | . . . . . Slashing . | . . . . . Piercing . | . . . . . Highest Corruption . | . . . . . Average Corruption . | . . . . . Corruption Purged . | . . . . . Corruption Blocked . | . . . . . Overload Shots . | . . . . . Overflow Damage . | . . . . . Projectiles . | . . . . . Explosions . | . . . . . Melee . | . . . . . Knockbacks 8 | . 1 3 4 . Impact 1 | . . 1 . . Kinetic 7 | . 1 2 4 . Secondary . | . . . . . Self-Inflicted Damage . | . . . . . Shots . | . . . . . Rammed . | . . . . . Targets Rammed 8 | . 2 5 1 . Kicked 8 | . 2 5 1 . Crushed . | . . . . . Highest Temperature 180 | 40 94 39 31 180 Average Temperature 21 | 21 24 13 5 32 Received Heat Transfer 1032 | 18 126 123 234 531 Siege Activations . | . . . . . Martial Activations . | . . . . . Shielding Activations . | . . . . . Robots Disrupted . | . . . . . Combat Hostiles . | . . . . . Robots Corrupted . | . . . . . Combat Hostiles . | . . . . . Parts Fried . | . . . . . Impact Corruptions . | . . . . . Robots Melted . | . . . . . Combat Hostiles . | . . . . . Parts Melted 1 | . . . . 1 Heat Transferred 585 | 50 350 . . 185 Parts Sabotaged . | . . . . . Parts Stolen . | . . . . . Parts Stripped . | . . . . . Power Chain Reactions . | . . . . . Alert | -11 -10 -10 -9 -8 ------- Run | Yrd Mat Min Mat Mat Maximum Alert Level . | . . . . . Low Security (%) 100 | 100 100 100 100 100 Level 1 . | . . . . . Level 2 . | . . . . . Level 3 . | . . . . . Level 4 . | . . . . . Level 5 . | . . . . . High Security . | . . . . . Max Security . | . . . . . Peak Influence 166 | 20 89 59 166 80 Initial 65 | . 13 19 18 65 Average 44 | 3 36 13 79 39 Influence Increases 1597 | 20 387 115 548 527 Destroy 0b10 Robot/C 960 | 20 280 80 260 320 Destroy 0b10 Robot/NC 45 | . 5 . 10 30 Destroy Leader 296 | . 72 20 84 120 Trap Triggered on 0b10 10 | . . . 10 . Successful Hack 24 | . . . 17 7 Disable Machine 30 | . . 15 . 15 Destroy Structure 7 | . . . 2 5 Lose Combat Pursuer 225 | . 30 . 165 30 Influence Decreases 1581 | . 355 118 443 665 Entered New Map 160 | . 7 33 31 89 Time Decay 1248 | . 338 85 392 433 Lost Part 173 | . 10 . 20 143 Squads Dispatched 12 | . 4 . 1 7 Investigation 2 | . 2 . . . Extermination . | . . . . . Reinforcement 7 | . 2 . 1 4 Assault . | . . . . . Garrison 3 | . . . . 3 Intercept . | . . . . . Searches Triggered . | . . . . . Construction Impeded . | . . . . . Haulers Reinforced . | . . . . . Active Scanning Responses . | . . . . . Cargo Convoy Interrupts . | . . . . . Stealth | -11 -10 -10 -9 -8 --------- Run | Yrd Mat Min Mat Mat Distress Signals 9 | . 3 . 2 4 Communications Jammed . | . . . . . Distress Signals . | . . . . . Times Spotted 106 | 1 25 16 28 36 Peak Tracking Total 15 | 1 6 15 4 6 Tactical Retreats 17 | . 2 2 11 2 Traps | -11 -10 -10 -9 -8 ------- Run | Yrd Mat Min Mat Mat Traps Triggered 2 | . 2 . . . Indirectly . | . . . . . Trap Hack Attempts . | . . . . . Triggered . | . . . . . Disarmed . | . . . . . Reprogrammed 6 | . . . 6 . Reused 1 | . . . 1 . Traps Extracted . | . . . . . Installed . | . . . . . Triggered 1 | . . . 1 . Machines | -11 -10 -10 -9 -8 ---------- Run | Yrd Mat Min Mat Mat Machines Disabled 2 | . . 1 . 1 Max in Single Turn 1 | . . 1 . 1 Machines Repaired . | . . . . . Machines Dismantled . | . . . . . Machines Sabotaged . | . . . . . Overloaded Fab Kills . | . . . . . Hacking | -11 -10 -10 -9 -8 --------- Run | Yrd Mat Min Mat Mat Machines Accessed 9 | . 1 . 5 3 Terminals 8 | . 1 . 4 3 Fabricators . | . . . . . Repair Stations 1 | . . . 1 . Recycling Units . | . . . . . Scanalyzers . | . . . . . Garrison Access . | . . . . . Total Hacks 26 | . 1 . 16 9 Successful 14 | . . . 10 4 Failed 12 | . 1 . 6 5 Catastrophic 1 | . . . . 1 Database Lockouts . | . . . . . Manual 2 | . . . . 2 Terminals 24 | . 1 . 14 9 Fabricators . | . . . . . Repair Stations 2 | . . . 2 . Recycling Units . | . . . . . Scanalyzers . | . . . . . Garrison Access . | . . . . . Terminal Hacks 12 | . . . 8 4 Record 3 | . . . 3 . Alert Level 2 | . . . 1 1 Locate Traps 1 | . . . 1 . Reprogram Traps 2 | . . . 1 1 Hauler Manifests 1 | . . . 1 . Zone Layout 3 | . . . 1 2 Fabricator Hacks . | . . . . . Repair Station Hacks 2 | . . . 2 . Scan Component 1 | . . . 1 . Repair 1 | . . . 1 . Recycling Unit Hacks . | . . . . . Scanalyzer . | . . . . . Garrison Access Hacks . | . . . . . Unauthorized Hacks . | . . . . . Terminals . | . . . . . Fabricators . | . . . . . Repair Stations . | . . . . . Recycling Units . | . . . . . Scanalyzers . | . . . . . Garrison Access . | . . . . . Data Cores Recovered . | . . . . . Used . | . . . . . Hacking Detections 6 | . 1 . 3 2 Full Trace Events . | . . . . . Feedback Events . | . . . . . Feedback Blocked . | . . . . . Robot Schematics Acquired . | . . . . . Robots Built . | . . . . . Authchips . | . . . . . Time . | . . . . . Total Robot Build Rating . | . . . . . Part Schematics Acquired . | . . . . . Parts Built . | . . . . . Authchips . | . . . . . Time . | . . . . . Total Part Build Rating . | . . . . . Parts Repaired 1 | . . . 1 . Time 26 | . . . 26 . Parts Recycled . | . . . . . Recycled Matter . | . . . . . Retrieved Matter . | . . . . . Retrieved Components . | . . . . . Parts Scanalyzed . | . . . . . Part Schematics Acquired . | . . . . . Parts Damaged . | . . . . . Bothacking | -11 -10 -10 -9 -8 ------------ Run | Yrd Mat Min Mat Mat Used RIF Installer . | . . . . . Robots Hacked . | . . . . . Non-combat . | . . . . . Combat . | . . . . . Robot Hacks Applied . | . . . . . Relay Couplers Released . | . . . . . Fabnet Peak Effective % . | . . . . . Robots Rewired . | . . . . . Allies Hacked . | . . . . . Hacks Repelled . | . . . . . Allies | -11 -10 -10 -9 -8 -------- Run | Yrd Mat Min Mat Mat Total Allies 1 | . . 1 . . Largest Group 1 | . . 1 . . Highest-Rated Group 31 | . . 31 . . Highest-Rated Ally 31 | . . 31 . . Total Orders . | . . . . . Ally Attacks 13 | . . 13 . . Total Damage 84 | . . 84 . . Kills 3 | . . 3 . . Allies Corrupted . | . . . . . Allies Melted . | . . . . . Intel | -11 -10 -10 -9 -8 ------- Run | Yrd Mat Min Mat Mat Active Infowar (turns) . | . . . . . Robot Analysis Total . | . . . . . Derelict Logs Recovered 1 | . . 1 . . Drone Launches . | . . . . . Drone Recoveries . | . . . . . Exploration | -11 -10 -10 -9 -8 ------------- Run | Yrd Mat Min Mat Mat Turns Passed 3686 | 78 1031 535 966 1076 Spaces Moved 2017 | 57 603 356 494 507 Core 22 | 18 4 . . . Treads . | . . . . . Legs 1995 | 39 599 356 494 507 Wheels . | . . . . . Hover . | . . . . . Flight . | . . . . . Fastest Speed 50 | 50 120 120 120 120 Average Speed 123 | 97 130 120 121 121 Slowest Speed 300 | 120 300 120 190 190 Overloaded Moves . | . . . . . Propulsion Burnouts . | . . . . . Robots Hopped . | . . . . . Potential Cave-ins . | . . . . . Cave-ins Triggered . | . . . . . Exploration Rate (%) 47 | 6 69 85 38 41 Regions Visited 4 Branch Regions 1 Pre-discovered Areas . | . . . . . Known Exits Taken 3 | . 1 1 1 . Unknown Exits Taken 1 | 1 . . . . Scrap Searched . | . . . . . Spaces Dug . | . . . . . Terrain Destroyed 1 | . . 1 . . Melee . | . . . . . Projectile 1 | . . 1 . . AOE . | . . . . . Terrain Rammed . | . . . . . Walls Destroyed . | . . . . . Machines Disabled . | . . . . . Actions | -11 -10 -10 -9 -8 --------- Run | Yrd Mat Min Mat Mat Total 2844 | 72 775 424 767 806 Wait 433 | . 103 28 178 124 Move 2013 | 56 602 355 493 507 Hop . | . . . . . Pick Up 72 | 7 15 5 18 27 Fast Attach . | . . . . . Attach 42 | 5 5 3 6 23 Detach . | . . . . . Swap 14 | . 3 . 4 7 Drop 30 | . 4 5 13 8 Fire 232 | 4 41 23 54 110 Melee . | . . . . . Ram . | . . . . . Kick 8 | . 2 5 1 . Crush . | . . . . . Escape Stasis . | . . . . . Rewire . | . . . . . Trap . | . . . . . Miscellaneous . | . . . . . Route ------- -11/Scrapyard -10/Materials (discovered 3 exits: *Mat / *Min x2) -10/Mines (discovered 2 exits: *Mat x2) -9/Materials -8/Materials (discovered 1 exit: [*Sto]) History --------- Turn | Location | Event 2 | -11/Scrapyard | Met Revision 17 53 | -11/Scrapyard | Discovered new exit (range 8) 79 | -11/Scrapyard | Entered Materials 306 | -10/Materials | Build established: Mutant 705 | -10/Materials | Discovered new exit (range 9) 857 | -10/Materials | Discovered new exit (range 15) 1034 | -10/Materials | Discovered new exit (range 7) 1108 | -10/Materials | Identified exit to Mines 1110 | -10/Materials | Entered Mines 1253 | -10/Mines | Received a Mining Laser from a helpful Derelict 1353 | -10/Mines | Assembled infested the area 1469 | -10/Mines | Identified exit to Materials 1539 | -10/Mines | Core integrity fell below 50% 1571 | -10/Mines | Discovered exit to Materials (range 7) 1645 | -10/Mines | Entered Materials 1645 | -9/Materials | Evolved 2 slots: Propulsion x1, Utility x1 2152 | -9/Materials | Repaired Lrg. Matter Pod 2333 | -9/Materials | Build established: Scavenger-Mutant 2437 | -9/Materials | Discovered new exit (range 13) 2473 | -9/Materials | Identified exit to Materials 2611 | -9/Materials | Entered another Materials area 2611 | -8/Materials | Evolved 2 slots: Propulsion x1, Utility x1 2914 | -8/Materials | Lost 4 parts (1p3n) 3044 | -8/Materials | Garrison activated, responded to threat 3246 | -8/Materials | Core integrity fell below 50% 3273 | -8/Materials | Lost 6 parts (1p3n2w) 3610 | -8/Materials | Core integrity fell below 20% 3644 | -8/Materials | Lost 3 parts (1n1u1w) 3646 | -8/Materials | Discovered new exit (range 6) 3687 | -8/Materials | Destroyed by G-47 Trooper with Particle Gun Last Messages --------------- 03619_ Penetrated by Slug. 03623_ X-62 Marksman destroyed. 03627_ Acquired Imp. Carbon-fiber Leg. 03629_ Dropped Carbon-fiber Leg. 03632_ Acquired Imp. Deuterium Engine. 03634_ Acquired Targeting Computer. 03636_ Acquired 53 matter. 03646_ EXIT=FOUND 03646_ Gauss Rifle destroyed. 03646_ Carbon-fiber Leg destroyed. 03646_ Critical hit (Blast). 03646_ Knocked back. 03666_ Slug penetrates Wall. 03671_ H-61 Shepherd calls for reinforcements. 03671_ ALERT: Hostile activity reported, dispatching reinforcements to area. 03671_ Carbon-fiber Leg destroyed. 03673_ Slug penetrates Wall. 03679_ U-05 Engineer builds a Wall. 03679_ Knocked back. Map ----- +----------------------------------------------------+ | ?????????????????????????????????????????????????? | | ?????????????????????????????????????????????????? | | ??????????????????????????????????????????##?????? | | ?????????????????????????????????????????? #????? | | ?????????????????????????????????????????? #????? | | ????????????????????????????????????????? #????? | | ????????????????????????????????????????? #????? | | ????????????????????????????????????????? #????? | | ????????????????????????????????????????? / #????? | | ????????????????????????????????????????? #!???? | | ????????????????????????????????????????? ?# ??? | | ??????????????????????????????????????###+### ?? | | ??????????????????????????????????????# ###+## | | ????????????????????????????????????### | | ????????????????????????????????????? " T | | ???????????????????????????????? ? ???# | | ???????????????????????????????# ""???# ###### | | ???????????????????????????????# """??##= ##????? | | ???????????????????????????????? """???#= *#?????? | | ?????????????????????####????????? ??#%!%#?????? | | ???????????????########""###########+###!!!#???""" | | ????????????? !!%# | | ????????????? %% % *=" | | ????????????? H # | | ??????????????###### #####;;;;####"##### # | | ???????????????????# ??# @ g% #? ## # [ | | ???????????????????????# """ """ #? ## ####### | | ???????????????????????# """ """ # ## #?????? | | ???????????????????????# """ """ # < ## ####### | | ???????????????????????# # ## # | | ???????????????????????# # ## # | | ???????????????????????# * ######### # """ | | ???????????????????????# +????? + """ | | ???????????????????????###########?????##### """ | | ???????????????????????????????????????????# | | ???????????????????????????????????????????####### | | ???????????????????????????????????????????####### | | ???????????????????????????????????????????# | | ???????????????????????????????????????????# | | ???????????????????????????????????????????# | | ???????????????????????????????????????????# " | | ???????????????????????????????????????????# | | ???????????????????????????????????????????# | | ???????????????????????????????????????????# | | ???????????????????????????????????????????### # | | ?????????????????????????????????????????????# # | | ?????????????????????????????????????????????# # | | ?????????????????????????????????????????????# # | | ?????????????????????????????????????######### # | | ?????????????????????????????????????# ! ## # | +----------------------------------------------------+ Best States ------------- Heat Dissipation 31 Energy Generation 12 Energy Capacity 265 Matter Stores 450 Matter Capacity 450 Sight Range 16 Terrain Scan Density 10 Armor Coverage 150 Evasion (%) 55 Targeting Accuracy 10 Item Schematics ----------------- None Robot Schematics ------------------ None Fabricated ------------ Nothing Repaired ---------- Lrg. Matter Pod | 37% | -9/Materials Alien Tech Used ----------------- None Achievements -------------- I Survived The Infestation Please Form A Line Shopping List Storm Trooper Challenges ------------ None Game ------ Seed LegDeflectorBasin Manual? 0 Play Time 01:01:57 Cumulative 2.9 hours Start 2025.07.09 @ 03:03:08 End 2025.07.09 @ 21:03:21 Sessions 3 Manual Loads 0 Difficulty Rogue Special Mode None Game No. 2 Rogue 2 Adventurer 0 Explorer 0 Win Type - Total 0 Types 0/0/0/0/0/0/0/0/0/0 Lore% 0 Gallery% 4 Achievement% 6 Wizard Run 0 Options --------- Layout 1 ASCII 0 Keyboard 0 Movement Mouse Keybinds 0 Fullscreen 1 Font 24/Smallcaps Map View 50x35 Zoom Use 0% Tactical HUD 1 Map Filters NONE Filters NONE Steam 1 RUN: f3dadf1e-b088-44ca-ade6-d7242c558a65